bitfinex-derivatives/quotes_SOLF0:USTF0_20251222
["timestamp","ask_amount","ask_price","bid_price","bid_amount"]
[1766405076925,3.22,127.18,127.12,2.75864559]
[1766405077929,0.05862741,127.16,127.12,2.75864559]
[1766405078619,0.05862741,127.16,127.12,9.84124559]
[1766405079133,0.05862741,127.16,127.12,2.75864559]
[1766405084034,0.05862741,127.16,127.12,0.05864559]
[1766405084035,3.27862741,127.16,127.12,0.05864559]
[1766405084930,0.05862741,127.16,127.12,2.75864559]
[1766405086530,0.05862741,127.16,127.12,9.84114559]
[1766405087133,0.05862741,127.16,127.13,2.7]
[1766405088542,0.05862741,127.16,127.12,0.05864559]
[1766405088742,3.27862741,127.16,127.12,0.05864559]
[1766405095239,3.27862741,127.16,127.09,2.7]
[1766405096247,3.27862741,127.16,127.11,0.05501603]
[1766405096639,10.35922741,127.16,127.11,0.05501603]
[1766405096840,3.22,127.15,127.11,0.05501603]
[1766405098946,3.22,127.15,127.1,7.0838]
[1766405099147,3.22,127.15,127.07,59.83342074]
[1766405099648,3.22,127.15,127.1,7.0838]
[1766405100049,0.05989107,127.14,127.11,0.05024697]
[1766405100344,0.05989107,127.14,127.07,16.96746771]
[1766405101052,0.05989107,127.14,127.08,0.06]
[1766405101453,3.27989107,127.14,127.1,0.05752913]
[1766405102457,3.27989107,127.14,127.07,0.06]
[1766405102855,3.22,127.13,127.05,0.11]
[1766405103345,0.04959134,127.1,127.08,0.00055217]
[1766405109556,0.04959134,127.1,127.08,7.08545217]
[1766405113151,0.04959134,127.1,127.08,0.00055217]
[1766405115760,0.04959134,127.1,127.05,67.47965217]
[1766405116665,0.04959134,127.1,127.07,7.0853]
[1766405121366,0.04959134,127.1,127.04,67.3802392]
[1766405122267,3.48959134,127.1,127.02,1.46491205]
[1766405122459,0.05253027,127.07,127.06,0.05369751]
[1766405126273,0.05253027,127.07,127.04,7.0866]
[1766405126474,0.05253027,127.07,127.02,92.79]
[1766405126475,0.05253027,127.07,127.02,7.1379]
[1766405126967,3.49253027,127.07,127.02,7.1379]
[1766405127376,3.49253027,127.07,127.03,0.05998492]
[1766405128578,4.90491205,127.06,127.0,7.139]
[1766405128774,3.44,127.05,127.0,7.139]
[1766405129474,0.05081564,127.04,127.01,0.05444693]
[1766405130978,0.00081564,127.04,127.01,7.14324693]
[1766405131179,0.00081564,127.04,127.01,0.05444693]
[1766405131477,0.00081564,127.04,127.02,7.0882]
[1766405141983,0.00081564,127.04,127.01,0.05444693]
[1766405143276,0.00081564,127.04,127.01,7.14324693]
[1766405146783,0.00081564,127.04,127.01,0.05444693]
[1766405170414,0.00081564,127.04,127.01,7.14324693]
[1766405170810,0.00081564,127.04,127.01,14.42849027]
[1766405173514,0.00081564,127.04,127.01,7.33969027]
[1766405174015,0.00081564,127.04,127.01,14.42839027]
[1766405178615,0.00081564,127.04,127.02,7.28524334]
[1766405184322,3.34,127.08,127.02,7.28524334]
[1766405185423,0.05677282,127.06,127.04,0.05597811]
[1766405186821,3.39677282,127.06,127.01,7.28524334]
[1766405187724,3.39677282,127.06,127.02,0.00492118]
[1766405187923,3.39677282,127.06,127.0,7.28524334]
[1766405188126,5.63112766,127.05,127.0,7.28524334]
[1766405189026,0.05858625,127.04,127.0,7.34524334]
[1766405197035,0.05858625,127.04,127.01,0.06]
[1766405200236,0.05858625,127.04,127.01,7.1488]
[1766405200436,3.32,127.06,127.01,0.06]
[1766405200939,3.32,127.06,127.02,7.0883]
[1766405201438,0.05439864,127.05,127.03,0.05836691]
[1766405202844,3.37439864,127.05,127.0,14.37414334]
[1766405203026,3.37439864,127.05,127.0,14.43414334]
[1766405203729,3.37439864,127.05,127.0,7.34524334]
[1766405204237,3.32,127.04,126.99,7.28524334]
[1766405204532,3.32,127.04,127.0,7.0894]
[1766405212040,3.32,127.04,126.99,7.34524334]
[1766405217750,3.32,127.03,126.97,0.06]
[1766405217949,0.05263618,127.01,126.97,0.06]
[1766405220348,0.05263618,127.01,126.98,0.06]
[1766405220550,0.00263618,127.01,126.98,0.11021934]
[1766405220749,0.00263618,127.01,126.98,0.05021934]
[1766405221542,0.00263618,127.01,126.99,7.0899]
[1766405221842,3.32,127.06,126.98,0.05021934]
[1766405222050,3.32,127.06,126.98,7.28524334]
[1766405222853,0.05862035,127.03,127.01,0.05285552]
[1766405224650,3.32,127.06,127.01,7.14165552]
[1766405225451,95.07112766,127.07,127.01,7.14165552]
[1766405225652,0.05061231,127.05,127.01,7.14165552]
[1766405235456,0.00061231,127.05,127.01,7.14165552]
[1766405235668,3.41,127.09,127.01,111.78698165]
[1766405235849,3.41,127.09,127.01,119.04970035]
[1766405236565,3.41,127.09,127.03,7.0874]
[1766405236861,3.41,127.12,127.05,0.06010865]
[1766405237054,96.19,127.12,127.05,7.0864]
[1766405237853,0.05338597,127.1,127.07,0.05404756]
[1766405238662,3.46338597,127.1,127.07,0.05404756]
[1766405240368,3.46338597,127.1,127.04,7.087]
[1766405240369,3.46338597,127.1,127.02,14.40367422]
[1766405240560,3.41,127.1,127.02,7.31557422]
[1766405240866,1.46632613,127.11,127.02,8.78190035]
[1766405241159,4.87632613,127.11,127.02,8.78190035]
[1766405241362,4.87632613,127.11,127.02,1.46632613]
[1766405241562,0.05295246,127.08,127.05,0.05872928]
[1766405244967,0.00295246,127.08,127.05,7.14502928]
[1766405254574,0.00295246,127.08,127.05,0.05872928]
[1766405254884,4.86927859,127.08,127.01,92.8]
[1766405255381,4.86927859,127.08,127.02,7.0882]
[1766405255876,4.86927859,127.08,127.04,0.05063102]
[1766405258782,4.86927859,127.08,127.04,0.00063102]
[1766405258783,3.2,127.07,127.04,0.00063102]
[1766405261989,4.66632613,127.06,126.99,7.0895]
[1766405262789,3.2,127.05,126.99,7.0895]
[1766405262982,0.05824904,127.03,127.01,0.04969966]
[1766405263885,3.2,127.05,127.01,0.04969966]
[1766405264888,0.05635882,127.04,127.01,0.04969966]
[1766405265690,1.46632613,127.06,127.01,7.13829966]
[1766405266490,0.05350275,127.05,127.01,7.13829966]
[1766405271389,0.05350275,127.05,127.01,0.04969966]
[1766405271588,1.51982888,127.05,127.01,0.04969966]
[1766405271995,4.71982888,127.05,127.01,0.04969966]
[1766405277288,3.2,127.04,127.01,0.04969966]
[1766405277599,1.46632613,127.03,126.98,92.78]
[1766405278392,0.05848036,127.02,126.99,0.05328968]
[1766405281796,3.25848036,127.02,126.95,10.054494]
[1766405282003,3.25848036,127.02,126.95,2.73891978]
[1766405283103,3.25848036,127.02,126.97,0.05274241]
[1766405283900,3.25848036,127.02,126.97,7.14364241]
[1766405290504,0.05848036,127.02,126.97,7.14364241]
[1766405290808,0.05848036,127.02,126.98,7.0903]
[1766405292900,4.92632613,127.06,126.99,7.0897]
[1766405293406,3.46,127.05,126.99,7.0897]
[1766405293812,0.0597083,127.03,127.01,0.05673379]
[1766405295595,3.46,127.06,127.01,0.05673379]
[1766405296512,0.05372741,127.05,127.01,0.05673379]
[1766405302312,0.00372741,127.05,127.01,117.63990801]
[1766405302511,0.00372741,127.05,127.02,7.31557422]
[1766405303714,0.00372741,127.05,127.03,7.0877]
[1766405306914,0.00372741,127.05,127.01,117.63990801]
[1766405307517,0.00372741,127.05,127.02,110.2612]
[1766405307815,0.00372741,127.05,127.03,92.8]
[1766405308715,0.00372741,127.05,127.04,7.0872]
[1766405312712,0.00372741,127.05,127.04,99.8872]
[1766405317524,2.29094667,127.14,127.06,3.12]
[1766405318219,2.29094667,127.14,127.08,7.0849]
[1766405318525,0.06019946,127.12,127.08,7.0849]
[1766405319532,3.58019946,127.12,127.09,0.05945572]
[1766405320738,9.946e-05,127.12,127.09,7.14365572]
[1766405321718,0.05908622,127.12,127.09,7.14365572]
[1766405322118,0.05898676,127.12,127.09,7.14365572]
[1766405326230,0.05898676,127.12,127.09,10.59365572]
[1766405326433,0.05898676,127.12,127.09,3.50945572]
[1766405337446,5.81094667,127.16,127.09,3.50945572]
[1766405337950,3.52,127.15,127.09,3.50945572]
[1766405338555,0.0528496,127.13,127.09,3.50945572]
[1766405341453,3.5728496,127.13,127.06,7.0858]
[1766405341647,3.5728496,127.13,127.05,3.45]
[1766405341648,3.52,127.11,127.05,3.45]
[1766405342553,0.05766816,127.09,127.07,0.05448639]
[1766405347769,3.38,127.07,127.02,3.43]
[1766405348770,0.05941494,127.06,127.03,0.05335012]
[1766405349069,3.43941494,127.06,127.03,0.05335012]
[1766405362583,0.05941494,127.06,127.03,0.05335012]
[1766405364888,3.43941494,127.06,127.03,0.05335012]
[1766405365485,0.05941494,127.06,127.03,3.48335012]
[1766405366689,0.05941494,127.06,127.04,7.0871]
[1766405367791,3.38,127.09,127.04,10.5171]
[1766405368886,0.05261289,127.08,127.04,10.5171]
[1766405369585,0.05261289,127.08,127.05,7.0866]
[1766405372194,1.51894447,127.08,127.05,7.0866]
[1766405375685,1.51894447,127.08,127.04,3.43]
[1766405377183,4.87894447,127.08,127.04,3.43]
[1766405377888,4.87894447,127.08,127.03,7.14105012]
[1766405378092,3.36,127.07,127.03,0.05335012]
[1766405378402,1.46633158,127.06,127.03,0.05335012]
[1766405380796,4.82633158,127.06,127.03,0.05335012]
[1766405381201,3.36,127.06,127.03,0.05335012]
[1766405381503,1.46633158,127.05,127.03,0.05335012]
[1766405381696,1.51988323,127.05,127.03,0.05335012]
[1766405383405,1.51988323,127.05,127.03,0.00335012]
[1766405383406,4.87988323,127.05,127.03,0.00335012]
[1766405385411,3.36,127.04,126.98,3.41]
[1766405385711,4.82633158,127.03,126.98,3.41]
[1766405386409,0.05859163,127.02,126.99,0.05472988]
[1766405393535,0.05859163,127.02,126.99,7.14462988]
[1766405398038,0.05859163,127.02,126.99,10.55462988]
[1766405399642,3.36,127.07,127.01,3.41]
[1766405399940,3.36,127.06,127.01,3.41]
[1766405400728,0.05971843,127.05,127.02,0.05876089]
[1766405401842,110.1873,127.11,127.02,0.05876089]
[1766405401843,4.82633158,127.09,127.02,3.46876089]
[1766405402146,4.82633158,127.09,127.02,3.41]
[1766405402345,1.46633158,127.07,127.02,3.41]
[1766405402837,0.05330416,127.06,127.03,0.06020675]
[1766405405039,1.46633158,127.05,127.03,0.00020675]
[1766405405636,4.87963574,127.06,127.03,0.00020675]
[1766405407539,3.43,127.05,126.99,10.3499]
[1766405408543,0.05963846,127.03,127.01,0.05458157]
[1766405409447,3.48963846,127.03,126.98,7.0905]
[1766405409636,4.89633158,127.02,126.97,3.26]
[1766405410450,1.46633158,127.0,126.98,0.05357572]
[1766405410636,1.46633158,127.0,126.95,96.08]
[1766405411140,1.46633158,127.0,126.95,3.26]
[1766405411541,1.46633158,127.0,126.95,10.3521]
[1766405411741,1.46633158,127.0,126.96,0.05315952]
[1766405412037,3.43,126.99,126.96,0.05315952]
[1766405415540,3.43,126.97,126.88,3.26]
[1766405415849,94.28633158,126.98,126.88,3.26]
[1766405415850,3.43,126.94,126.88,3.26]
[1766405416548,0.05280643,126.92,126.9,0.05861914]
[1766405416839,3.43,126.96,126.9,10.41351914]
[1766405417044,3.43,126.97,126.9,4.72633158]
[1766405417239,3.43,126.97,126.91,7.0942]
[1766405417745,3.49019603,126.95,126.93,0.00487537]
[1766405418046,3.49019603,126.95,126.88,4.72633158]
[1766405418849,3.49019603,126.95,126.9,0.05488806]
[1766405421147,3.49019603,126.95,126.87,10.3565]
[1766405421346,3.43,126.95,126.87,10.3565]
[1766405421746,3.43,126.95,126.88,3.26]
[1766405422143,0.06002571,126.93,126.9,0.05584348]
[1766405422856,3.49002571,126.93,126.9,0.05584348]
[1766405423238,3.49002571,126.93,126.87,10.3563]
[1766405424251,3.49002571,126.93,126.89,0.02993459]
[1766405424845,3.43,126.92,126.84,6.53146254]
[1766405425248,3.43,126.91,126.84,6.53146254]
[1766405425655,3.43,126.91,126.84,13.62966254]
[1766405425852,2.29526869,126.93,126.84,3.27146254]
[1766405425853,3.48711678,126.89,126.84,3.27146254]
[1766405426048,3.48711678,126.89,126.77,3.26]
[1766405426049,3.43,126.86,126.77,3.26]
[1766405426260,2.29526869,126.87,126.77,3.26]
[1766405426261,0.05087568,126.83,126.77,3.26]
[1766405426745,0.05087568,126.83,126.72,3.26]
[1766405426746,3.43,126.81,126.72,3.26]
[1766405426944,3.43,126.81,126.73,3.26]
[1766405427357,0.05677946,126.78,126.73,3.26]
[1766405427658,0.05677946,126.78,126.75,3.26]
[1766405428253,3.48677946,126.78,126.7,3.26]
[1766405428451,0.05452899,126.75,126.7,3.26]
[1766405430555,0.00452899,126.75,126.71,3.33]
[1766405431668,0.00452899,126.75,126.72,0.05]
[1766405433553,3.39452899,126.75,126.66,10.4383]
[1766405433755,3.39,126.75,126.66,10.4383]
[1766405433951,3.39,126.75,126.67,3.33]
[1766405434150,96.31,126.77,126.69,3.33]
[1766405434561,96.31,126.77,126.69,5.62526869]
[1766405434757,0.05358457,126.74,126.7,3.33]
[1766405434967,92.92,126.77,126.71,3.38]
[1766405435358,68.7941,126.77,126.72,12.73006869]
[1766405435553,3.39,126.8,126.73,3.4]
[1766405435763,3.39,126.8,126.74,2.29526869]
[1766405435972,0.05998739,126.78,126.76,0.05358457]
[1766405437870,92.94,126.82,126.76,0.05358457]
[1766405438460,3.4,126.81,126.76,0.05358457]
[1766405438971,0.06005327,126.8,126.76,0.05358457]
[1766405449176,0.06005327,126.8,126.76,10.55618457]
[1766405449969,5.327e-05,126.8,126.77,10.5022]
[1766405450176,5.327e-05,126.8,126.77,3.4]
[1766405450679,3.4,126.85,126.78,3.4]
[1766405451587,0.05106466,126.83,126.8,0.05291031]
[1766405451977,0.00106466,126.83,126.8,10.55331031]
[1766405454478,0.00106466,126.83,126.8,3.45291031]
[1766405455485,0.00106466,126.83,126.8,0.05291031]
[1766405456486,3.40106466,126.83,126.77,7.1021]
[1766405457587,3.40106466,126.83,126.79,0.05125266]
[1766405460388,0.00106466,126.83,126.79,0.05125266]
[1766405461381,0.00106466,126.83,126.79,3.45125266]
[1766405461892,0.00106466,126.83,126.8,3.4]
[1766405462490,0.00106466,126.83,126.81,3.4]
[1766405463092,3.4,126.9,126.83,10.4988]
[1766405464088,3.4,126.9,126.85,0.05652036]
[1766405464089,0.05368899,126.88,126.85,0.05652036]
[1766405464498,0.00368899,126.88,126.85,3.45652036]
[1766405465191,96.36,126.92,126.86,3.4]
[1766405465388,92.23629362,126.92,126.86,3.4]
[1766405466192,92.23629362,126.92,126.88,7.0957]
[1766405466492,3.4,126.94,126.88,0.06056698]
[1766405467098,3.53,126.96,126.88,3.35056698]
[1766405467295,0.05072747,126.93,126.91,0.05621728]
[1766405467499,0.05987605,126.93,126.91,0.05968532]
[1766405467889,3.53,126.98,126.91,0.05968532]
[1766405468090,3.53,126.98,126.91,3.34968532]
[1766405468588,92.96,126.99,126.92,3.29]
[1766405468984,0.06033992,126.97,126.94,0.04964856]
[1766405471700,0.00033992,126.97,126.94,3.33964856]
[1766405471889,0.00033992,126.97,126.95,3.29]
[1766405472297,0.00033992,126.97,126.94,0.04964856]
[1766405476402,3.53033992,126.97,126.89,10.3852]
[1766405476594,3.53,126.97,126.89,10.3852]
[1766405477111,3.53,126.96,126.87,7.0962]
[1766405477401,3.53,126.96,126.86,113.6886]
[1766405477591,0.05345867,126.92,126.9,0.0549686]
[1766405480004,0.05345867,126.92,126.88,3.29]
[1766405480595,0.00345867,126.92,126.88,3.29]
[1766405481597,0.00345867,126.92,126.89,0.05848235]
[1766405493802,0.00345867,126.92,126.89,10.57398235]
[1766405497716,0.00345867,126.92,126.89,3.47848235]
[1766405502515,0.00345867,126.92,126.89,0.05848235]
[1766405502822,7.09765867,126.92,126.89,0.05848235]
[1766405504329,0.00345867,126.92,126.89,0.05848235]
[1766405507823,3.30345867,126.92,126.89,0.05848235]
[1766405509126,3.30345867,126.92,126.86,3.42]
[1766405509430,10.39755867,126.92,126.86,3.42]
[1766405509827,4.76933341,126.91,126.84,110.70156567]
[1766405510031,4.76933341,126.91,126.84,103.4378]
[1766405510234,0.05915772,126.89,126.86,0.05264719]
[1766405510729,3.35915772,126.89,126.86,0.05264719]
[1766405511229,4.82849113,126.89,126.82,17.78316567]
[1766405511419,4.82849113,126.89,126.83,3.42]
[1766405512327,4.82849113,126.89,126.85,0.05256052]
[1766405512833,4.76933341,126.87,126.8,3.42]
[1766405513635,11.86603341,126.87,126.8,3.42]
[1766405513833,0.0589475,126.85,126.82,0.05840323]
[1766405514026,1.52828091,126.85,126.82,0.05840323]
[1766405514226,3.3,126.84,126.78,3.42]
[1766405514822,1.46933341,126.85,126.79,3.42]
[1766405515422,0.05363499,126.83,126.81,0.05708389]
[1766405521435,3.3,126.82,126.77,3.42]
[1766405522342,3.3,126.82,126.78,0.05712714]
[1766405530150,10.3995,126.82,126.78,0.05712714]
[1766405530645,3.47,126.8,126.73,3.49]
[1766405530847,3.47,126.78,126.73,3.49]
[1766405531648,0.05072342,126.77,126.73,3.49]
[1766405536465,0.05072342,126.77,126.71,10.5956]
[1766405536861,203.3998,126.82,126.74,3.49]
[1766405536862,1.46933341,126.82,126.74,3.49]
[1766405537066,4.93933341,126.8,126.74,3.49]
[1766405537865,0.05785103,126.78,126.76,0.05056748]
[1766405540969,0.05785103,126.78,126.72,3.49]
[1766405542674,7.15965103,126.78,126.72,3.49]
[1766405544270,5.8293543,126.78,126.7,96.51]
[1766405544474,0.05883762,126.75,126.7,96.51]
[1766405545372,0.05883762,126.75,126.7,3.49]
[1766405546681,3.47,126.74,126.67,3.49]
[1766405546860,3.52284247,126.72,126.64,3.49]
[1766405547060,0.05787197,126.69,126.64,3.49]
[1766405548270,3.47,126.74,126.67,3.49]
[1766405548675,3.47,126.76,126.69,3.49]
[1766405549270,0.05579566,126.74,126.71,0.05536245]
[1766405550872,93.0,126.78,126.71,3.39536245]
[1766405551076,3.54,126.81,126.73,3.34]
[1766405551975,3.54,126.81,126.74,3.34]
[1766405552171,0.05458883,126.79,126.76,0.0602108]
[1766405555783,0.00458883,126.79,126.76,3.3902108]
[1766405556184,3.2,126.85,126.76,3.3902108]
[1766405556370,3.2,126.85,126.76,3.33]
[1766405557279,3.2,126.88,126.81,3.33]
[1766405557476,96.2,126.9,126.81,3.33]
[1766405557674,96.2,126.9,126.83,3.33]
[1766405558280,0.058069,126.88,126.85,0.05660046]
[1766405561685,10.293,126.94,126.85,3.38660046]
[1766405561890,3.2,126.94,126.85,3.33]
[1766405562185,3.2,126.94,126.87,3.33]
[1766405562988,0.05077356,126.92,126.89,0.05232999]
[1766405565987,0.05077356,126.92,126.89,3.38232999]
[1766405565988,0.00077356,126.92,126.89,3.38232999]
[1766405568390,0.00077356,126.92,126.89,10.47752999]
[1766405568694,3.2,126.98,126.9,3.33]
[1766405569084,3.2,126.98,126.91,3.33]
[1766405569491,0.05282796,126.96,126.93,0.06008647]
[1766405569894,0.05282796,126.96,126.93,3.39008647]
[1766405570192,0.00282796,126.96,126.93,3.39008647]
[1766405570692,0.00282796,126.96,126.93,0.06008647]
[1766405572290,0.00282796,126.96,126.93,3.39008647]
[1766405573693,96.14,127.0,126.93,3.39008647]
[1766405574590,0.05736703,126.98,126.93,10.48308647]
[1766405574991,3.2,127.02,126.94,3.33]
[1766405576089,0.05508489,126.99,126.97,0.05541394]
[1766405576801,0.05508489,126.99,126.94,3.33]
[1766405577799,0.05508489,126.99,126.95,0.0582409]
[1766405577999,3.25508489,126.99,126.95,0.0582409]
[1766405579298,0.05508489,126.99,126.95,0.0582409]
[1766405580199,3.25508489,126.99,126.91,7.0943]
[1766405580394,3.2,126.99,126.91,10.4243]
[1766405580594,3.2,126.99,126.92,3.33]
[1766405581393,0.05760797,126.97,126.94,0.05298127]
[1766405583499,3.2,127.01,126.94,0.05298127]
[1766405583500,10.2893,127.01,126.94,3.38298127]
[1766405584500,0.05266651,126.99,126.94,3.38298127]
[1766405585999,0.05266651,126.99,126.94,10.47558127]
[1766405589313,0.05266651,126.99,126.94,3.38298127]
[1766405592909,0.05266651,126.99,126.94,10.47568127]
[1766405593406,0.05266651,126.99,126.95,3.28]
[1766405595911,0.05266651,126.99,126.95,10.3721]
[1766405597512,0.05266651,126.99,126.95,3.28]
[1766405606212,0.00266651,126.99,126.95,3.28]
[1766405606618,0.00266651,126.99,126.94,8.61267038]
[1766405606619,0.00266651,126.99,126.97,3.28]
[1766405607113,0.00266651,126.99,126.97,3.33320289]
[1766405610017,0.00266651,126.99,126.97,0.05320289]
[1766405612016,0.00266651,126.99,126.97,3.29320289]
[1766405612428,96.23,127.04,126.97,3.29320289]
[1766405612429,3.33,127.03,126.97,3.29320289]
[1766405613219,7.0872,127.04,126.99,3.24]
[1766405613421,0.05033205,127.03,127.0,0.0576427]
[1766405614426,0.05033205,127.03,127.0,3.2976427]
[1766405620029,0.00033205,127.03,127.0,3.2976427]
[1766405620432,92.86,127.07,127.01,3.38]
[1766405621124,92.86,127.07,127.02,3.38]
[1766405621318,0.05511204,127.06,127.02,3.38]
[1766405621516,0.05511204,127.06,127.03,0.06016271]
[1766405623333,0.05511204,127.06,127.03,3.44016271]
[1766405627636,1.46748911,127.09,127.03,3.44016271]
[1766405628040,11.77138911,127.1,127.03,3.44016271]
[1766405628639,0.05326376,127.08,127.03,3.44016271]
[1766405629328,7.35360154,127.16,127.03,3.44016271]
[1766405629329,3.22,127.14,127.06,3.38]
[1766405629832,3.22,127.1,127.04,3.38]
[1766405630433,0.05753683,127.08,127.06,0.05318925]
[1766405633352,0.05753683,127.08,127.02,3.38]
[1766405633353,3.27753683,127.08,127.02,3.38]
[1766405634648,3.27753683,127.08,127.04,0.05232227]
[1766405637649,0.05753683,127.08,127.04,3.43232227]
[1766405641654,0.05753683,127.08,127.04,0.05232227]
[1766405645861,4.83748911,127.07,127.04,0.00232227]
[1766405647463,3.37,127.06,126.99,3.43]
[1766405647664,3.37,127.04,126.99,3.43]
[1766405648465,0.05653613,127.03,127.0,0.05127184]
[1766405651267,3.37,127.06,127.0,3.48127184]
[1766405651471,3.37,127.06,127.0,3.43]
[1766405652172,7.0861,127.07,127.0,3.43]
[1766405652372,0.0507107,127.05,127.02,0.05129984]
[1766405653968,0.0507107,127.05,127.02,3.48129984]
[1766405656066,0.0507107,127.05,127.02,10.56999984]
[1766405656872,0.0507107,127.05,127.02,3.48129984]
[1766405657076,0.0507107,127.05,127.02,0.05129984]
[1766405659371,3.4207107,127.05,127.02,0.05129984]
[1766405659571,3.4207107,127.05,126.98,10.5207]
[1766405660776,3.4207107,127.05,127.0,0.0556385]
[1766405662488,0.0507107,127.05,127.0,3.4856385]
[1766405663784,3.37,127.04,127.0,0.0556385]
[1766405671384,0.0507107,127.05,127.0,0.0556385]
[1766405672084,3.3507107,127.05,127.0,0.0556385]
[1766405672889,3.3507107,127.05,127.0,3.2656385]
[1766405674392,0.0507107,127.05,127.0,3.2656385]
[1766405677800,0.0007107,127.05,127.01,3.37]
[1766405692304,3.2507107,127.05,127.0,0.0556385]
[1766405693606,10.3379107,127.05,127.0,0.0556385]
[1766405696111,10.3379,127.04,127.0,0.0556385]
[1766405696310,3.25,127.04,127.0,0.0556385]
[1766405696706,10.3384,127.03,127.0,0.0556385]
[1766405696910,10.3384,127.03,126.97,10.69600162]
[1766405697717,10.3384,127.03,126.97,10.71751147]
[1766405697918,0.05326666,127.01,126.99,0.05925338]
[1766405699916,3.25,127.05,126.99,3.42925338]
[1766405701015,0.05853523,127.03,126.99,3.42925338]
[1766405702821,0.05853523,127.03,126.99,10.51975338]
[1766405703023,92.82,127.08,127.0,3.37]
[1766405703222,99.9059,127.08,127.01,3.37]
[1766405703724,103.1559,127.08,127.01,3.37]
[1766405704123,0.05267528,127.06,127.03,0.05950744]
[1766405709627,0.00267528,127.06,127.03,3.58950744]
[1766405710132,3.24,127.11,127.03,3.58950744]
[1766405710325,3.24,127.11,127.03,3.53]
[1766405711133,0.05043981,127.08,127.06,0.05467664]
[1766405722745,3.29043981,127.08,127.02,3.53]
[1766405722949,3.24,127.07,127.02,3.53]
[1766405723839,3.24,127.07,127.03,0.0563227]
[1766405724039,4.70643595,127.07,127.03,0.0563227]
[1766405730956,3.24,127.07,127.03,0.0563227]
[1766405736964,4.76643595,127.06,127.01,7.0889]
[1766405737861,4.76643595,127.06,127.01,10.4589]
[1766405738054,0.05449433,127.05,127.02,0.05343237]
[1766405738859,0.05449433,127.05,127.02,3.42343237]
[1766405739058,0.00449433,127.05,127.03,3.37]
[1766405745468,0.00449433,127.05,127.02,7.14233237]
[1766405745964,0.00449433,127.05,127.02,10.51233237]
[1766405747769,0.00449433,127.05,127.03,7.0883]
[1766405748172,1.46643595,127.09,127.03,3.37]
[1766405748867,4.76643595,127.09,127.03,10.4583]
[1766405749070,3.3,127.09,127.03,10.4583]
[1766405749264,0.05238288,127.07,127.05,0.05579965]
[1766405754168,0.05238288,127.07,127.05,7.14299965]
[1766405757280,4.76643595,127.11,127.05,10.51299965]
[1766405757972,4.76643595,127.13,127.07,3.37]
[1766405758278,11.84923595,127.13,127.07,3.37]
[1766405758478,0.0513923,127.11,127.09,0.05531007]
[1766405762878,3.3513923,127.11,127.06,3.37]
[1766405763875,3.3513923,127.11,127.07,0.05108971]
[1766405764273,0.0013923,127.11,127.07,3.42108971]
[1766405765177,0.0013923,127.11,127.08,10.4555]
[1766405765377,0.0013923,127.11,127.09,3.37]
[1766405765574,92.8,127.15,127.09,3.37]
[1766405766481,0.05800799,127.13,127.11,0.06025946]
[1766405766681,3.45,127.21,127.11,3.25025946]
[1766405766985,4.91643595,127.21,127.13,3.19]
[1766405767184,3.45,127.2,127.13,3.19]
[1766405767367,4.91643595,127.19,127.13,3.19]
[1766405767768,3.45,127.22,127.15,3.24662928]
[1766405767987,4.91643595,127.21,127.15,3.19]
[1766405768289,3.45,127.2,127.12,3.19]
[1766405768477,4.91643595,127.2,127.12,3.19]
[1766405768677,4.91643595,127.2,127.15,0.05971843]
[1766405769874,3.45,127.2,127.15,0.05971843]
[1766405770279,3.45,127.27,127.16,3.19]
[1766405770483,4.91643595,127.22,127.2,0.00178688]
[1766405770783,4.91643595,127.22,127.16,3.19]
[1766405771578,4.91643595,127.22,127.16,10.2706]
[1766405771887,1.46643595,127.18,127.12,3.19]
[1766405772383,1.46643595,127.16,127.1,3.19]
[1766405772578,1.46643595,127.14,127.08,3.19]
[1766405772779,0.05741752,127.12,127.1,0.05647739]
[1766405776085,1.46643595,127.15,127.1,3.24647739]
[1766405776281,1.46643595,127.15,127.1,10.33077739]
[1766405776880,0.05272723,127.14,127.1,10.33077739]
[1766405777386,92.76,127.17,127.11,10.2736]
[1766405778387,92.76,127.17,127.13,0.05720629]
[1766405778781,1.46643595,127.18,127.13,0.05720629]